Cogmind - Beta 11 X5 @@@ ROGUE MODE // 2021.06.10 @ 18:25:23 Player: Terminus Result: Self-destructed Performance ------------- Evolutions (4) 2000 Regions Visited (15) 3000 Robots Destroyed (233) 1165 Value Destroyed (6609) 6609 Prototype IDs (21) 420 Alien Tech Used (0) 0 Bonus (1535) 1535 TOTAL SCORE: 14729 Bonus ------- High Alert Combat Kills 351 Follower Combat Kills 1019 Met Data Miner 300 Friendly Fire -135 Cogmind --------- Core Integrity 769/850 Matter 220/300 Energy 280/280 System Corruption 1% Temperature Cool (0) Movement Treading (265) Ox1 Location -6/Waste Parts ------- > --- POWER (1) -------- Heavy Ion Engine > --- PROPULSION (4) --- Armored Treads Armored Treads Medium Treads Medium Treads > --- UTILITY (7) ------ Cooling System Huge Storage Unit Advanced Sensor Array Improved Signal Interpreter Improved Medium Armor Plating Hacking Suite Makeshift Hacking Suite > --- WEAPON (3) ------- Gatling Laser Enhanced Autogun Enhanced Autogun > --- INVENTORY (25) --- Heavy Ion Engine Improved Deuterium Engine Armored Treads Cooling System Cooling System Cooling System Advanced Energy Well (500) Compact Matter Pod (46) Machine Analyzer Advanced Sensor Array Advanced Terrain Scanner Advanced Targeting Computer Armor Integrity Analyzer Improved Particle Charger Hardened Medium Armor Plating Force Rifle Ion Cannon Ion Cannon Cooled Particle Cannon Cooled Particle Cannon Cooled Particle Cannon Heavy Missile Launcher Remote Datajack Plasma Cutter Axe Peak State ------------ > --- POWER ------------ Heavy Ion Engine > --- PROPULSION ------- Armored Treads Armored Treads Medium Treads Medium Treads > --- UTILITY ---------- Cooling System Huge Storage Unit Advanced Sensor Array Improved Signal Interpreter Improved Medium Armor Plating Hacking Suite Makeshift Hacking Suite > --- WEAPON ----------- Enhanced Autogun Enhanced Autogun Enhanced Autogun > --- INVENTORY -------- Heavy Ion Engine Armored Treads Armored Treads Cooling System Cooling System Cooling System Advanced Energy Well Compact Matter Pod Machine Analyzer Advanced Sensor Array Advanced Terrain Scanner Advanced Targeting Computer Armor Integrity Analyzer Improved Particle Charger Hardened Medium Armor Plating Force Rifle Ion Cannon Ion Cannon Cooled Particle Cannon Cooled Particle Cannon Cooled Particle Cannon Heavy Missile Launcher Remote Datajack Plasma Cutter Axe [Rating: 60] Favorites ----------- Power Heavy Ion Engine Engine Heavy Ion Engine Propulsion Armored Treads Treads Armored Treads Leg Aluminum Leg Utility Cooling System Device Cooling System Storage Huge Storage Unit Processor Improved Signal Interpreter Hackware Hacking Suite Protection Medium Armor Plating Weapon Enhanced Autogun Energy Gun Beamcaster Energy Cannon Advanced Beam Cannon Ballistic Gun Enhanced Autogun Launcher Mini Grenade Launcher Special Weapon Remote Datajack Slashing Weapon Axe Build | -11 -10 -10 -9 -9 -9 -8 -8 -8 -7 -7 -7 -7 -6 -6 -6 ------- Run | Scr Mat Min Mat Min Exi Min Mat Sto Fac Low Low Dat Pro Fac Was Slots Evolved 8 | . . . 2 . . . 2 . 2 . . . . 2 . Power . | . . . . . . . . . . . . . . . . Propulsion 2 | . . . . . . . 1 . . . . . . 1 . Utility 5 | . . . 1 . . . 1 . 2 . . . . 1 . Weapon 1 | . . . 1 . . . . . . . . . . . . Parts Attached 177 | 6 15 1 27 3 . 2 31 17 29 5 13 . 4 24 . Power 9 | 1 1 1 2 . . . . 2 1 . . . . 1 . Engine 9 | 1 1 1 2 . . . . 2 1 . . . . 1 . Core . | . . . . . . . . . . . . . . . . Reactor . | . . . . . . . . . . . . . . . . Propulsion 31 | 2 6 . 7 1 . . 8 3 . . . . . 4 . Treads 21 | . . . 5 1 . . 8 3 . . . . . 4 . Leg 10 | 2 6 . 2 . . . . . . . . . . . . Wheel . | . . . . . . . . . . . . . . . . Hover . | . . . . . . . . . . . . . . . . Flight . | . . . . . . . . . . . . . . . . Utility 57 | 1 4 . 4 1 . . 9 3 17 3 6 . 4 5 . Device 21 | . 3 . . . . . 3 . 8 1 3 . 2 1 . Storage 6 | 1 1 . 1 . . . 1 1 . . . . . 1 . Processor 3 | . . . . . . . . . 3 . . . . . . Hackware 4 | . . . . . . . 1 1 1 1 . . . . . Protection 23 | . . . 3 1 . . 4 1 5 1 3 . 2 3 . Artifact . | . . . . . . . . . . . . . . . . Weapon 80 | 2 4 . 14 1 . 2 14 9 11 2 7 . . 14 . Energy Gun 14 | 1 4 . 4 1 . . 2 1 . . . . . 1 . Energy Cannon 17 | . . . 5 . . . 7 3 1 . . . . 1 . Ballistic Gun 28 | 1 . . 3 . . 1 2 4 5 1 4 . . 7 . Ballistic Cannon . | . . . . . . . . . . . . . . . . Launcher 11 | . . . 2 . . 1 2 1 1 1 3 . . . . Special Weapon 1 | . . . . . . . . . . . . . . 1 . Impact Weapon . | . . . . . . . . . . . . . . . . Slashing Weapon 9 | . . . . . . . 1 . 4 . . . . 4 . Piercing Weapon . | . . . . . . . . . . . . . . . . Special Melee Weapon . | . . . . . . . . . . . . . . . . Unidentified Prototypes 9 | . . . 4 . . . 1 2 1 . . . . 1 . Parts Lost 11 | . 1 . 1 . . . 6 . . . . . . 3 . Power 1 | . . . . . . . . . . . . . . 1 . Propulsion 3 | . . . 1 . . . 1 . . . . . . 1 . Utility 5 | . . . . . . . 4 . . . . . . 1 . Weapon 2 | . 1 . . . . . 1 . . . . . . . . Highest Loss Streak 3 | . 1 . 1 . . . 3 . . . . . . 2 . Average Slot Usage (%) 99 | . 98 100 99 100 100 100 99 99 99 100 100 100 100 99 . Engine 9 | . 14 14 11 11 11 11 9 9 7 7 7 7 7 6 . Treads 20 | . . . 12 22 22 22 26 26 23 23 23 23 23 25 . Leg 3 | . 28 28 8 . . . . . . . . . . . . Device 12 | . 12 14 11 11 11 11 11 12 14 14 14 15 14 13 . Storage 9 | . 14 14 11 11 11 11 9 9 7 7 7 7 7 6 . Processor 2 | . . . . . . . . . 7 7 7 7 7 6 . Hackware 6 | . . . . . . . 6 5 14 15 15 15 15 13 . Protection 5 | . . . 10 11 11 11 8 8 . . . . . 6 . Energy Gun 5 | . 24 28 6 11 11 11 2 . . . . . . . . Energy Cannon 4 | . . . 5 . . . 19 10 . . . . . . . Ballistic Gun 16 | . 3 . 20 22 22 18 3 16 21 22 22 23 23 16 . Naked Turns . | . . . . . . . . . . . . . . . . Heaviest Build 112 | 13 33 33 67 68 68 68 112 112 109 102 109 102 109 110 . Greatest Support 96 | 20 20 20 40 40 40 40 62 62 62 62 62 62 62 96 . Greatest Overweight (x) 2 | . 1 1 2 1 1 1 1 1 1 1 1 1 1 1 . Average Overweight (x) 1 | . . 1 1 1 1 1 1 1 1 1 1 1 1 1 . Largest Inventory Capacity 25 | 8 15 15 20 20 20 20 25 25 25 25 25 25 25 25 . Average Capacity 21 | 7 12 15 17 20 20 20 23 25 25 25 25 25 25 25 . Most Carried 25 | 1 15 15 20 20 20 20 25 25 25 25 25 25 25 25 . Average Carried 21 | . 10 15 17 20 20 20 22 24 24 25 24 25 25 24 . Final Capacity 25 | 8 15 15 20 20 20 20 25 25 25 25 25 25 25 25 25 Final Carried 25 | 1 15 15 20 20 20 20 24 25 25 25 25 25 25 25 25 Class Distribution -------------------- 40% | Tank 30% | Hacker-Skirmisher 9% | Mutant 5% | Commander-Tank 5% | Scavenger-Mutant 3% | Hacker-Mutant 3% | Scavenger-Tank Dominant Class ---------------- Scavenger-Mutant | -10/Materials Mutant | -10/Mines Tank | -9/Materials Tank | -9/Mines Tank | -9/Exiles Tank | -8/Mines Tank | -8/Materials Tank | -8/Storage Hacker-Skirmisher | -7/Factory Hacker-Skirmisher | -7/Lower Caves Hacker-Skirmisher | -7/Lower Caves Hacker-Skirmisher | -7/Data Miner Hacker-Skirmisher | -6/Proximity Caves Hacker-Skirmisher | -6/Factory Hacker-Skirmisher | -6/Waste Resources | -11 -10 -10 -9 -9 -9 -8 -8 -8 -7 -7 -7 -7 -6 -6 -6 ----------- Run | Scr Mat Min Mat Min Exi Min Mat Sto Fac Low Low Dat Pro Fac Was Matter Collected 5371 | 223 275 10 817 330 . 175 520 449 658 364 253 . 503 794 . Remotely . | . . . . . . . . . . . . . . . . Salvage Created 9194 | . 725 . 1704 743 . 418 2443 1045 786 274 182 . 102 772 . Parts 484 | . 48 . 104 22 . 26 126 61 44 3 6 . 3 41 . Haulers Intercepted 20 | . 1 . 6 . . . 6 5 2 . . . . . . Recyclers Shooed 5 | . 3 . 1 . . . 1 . . . . . . . . Parts Field Recycled . | . . . . . . . . . . . . . . . . Retrieved Matter . | . . . . . . . . . . . . . . . . Parts Self-Destructed 26 | . . . . . . . . . . 1 5 . 20 . . Prevented . | . . . . . . . . . . . . . . . . Kills | -11 -10 -10 -9 -9 -9 -8 -8 -8 -7 -7 -7 -7 -6 -6 -6 ------- Run | Scr Mat Min Mat Min Exi Min Mat Sto Fac Low Low Dat Pro Fac Was Combat Hostiles Destroyed 157 | . 16 . 29 10 . 10 40 17 9 3 10 . 3 10 . Melee 1 | . . . . . . . 1 . . . . . . . . Guns 84 | . 16 . 16 10 . 5 7 5 8 1 3 . 3 10 . Cannons 41 | . . . 8 . . . 24 9 . . . . . . . AOE 29 | . . . 5 . . 5 6 3 1 2 7 . . . . Classes Destroyed 17 | . 6 . 6 1 . 1 1 . 1 . . . . 1 . Worker 8 | . . . 1 1 . . 3 1 2 . . . . . . Builder 9 | . . . 1 . . 1 6 . 1 . . . . . . Tunneler 4 | . 1 . . . . 2 . . . . . . . 1 . Hauler 20 | . 1 . 6 . . . 6 5 2 . . . . . . Recycler 18 | . 2 . 1 7 . 3 . 2 2 . . . . 1 . Operator 6 | . . . 2 . . . 1 1 . . . . . 2 . Watcher 15 | . 3 . 4 . . . 5 2 . . . . . 1 . Swarmer 35 | . 6 . 1 7 . 9 . 7 . . 3 . 2 . . Grunt 82 | . 10 . 19 2 . . 28 6 3 3 5 . 1 5 . Brawler 3 | . . . 1 . . . 1 . . . . . . 1 . Duelist 3 | . . . 1 . . . 1 . . . 1 . . . . Protector 1 | . . . . . . . 1 . . . . . . . . Sentry 20 | . . . 7 . . . 7 4 1 . . . . 1 . Demolisher 1 | . . . . 1 . . . . . . . . . . . Hunter 5 | . . . . . . 1 2 . 1 . 1 . . . . Programmer 6 | . . . . . . . . . 4 . . . . 2 . Behemoth 1 | . . . . . . . . . . . . . . 1 . Best Kill Streak 12 | . 5 . 8 4 . 5 12 8 4 3 3 . 2 4 . Combat Bots Only 9 | . 4 . 6 4 . 3 9 5 2 3 3 . 2 3 . Max Kills in Single Turn 4 | . 2 . 3 1 . 4 3 3 2 2 2 . 1 2 . Gunslinging 1 | . 1 . . . . 1 . . . . . . . 1 . Exploded 3 | . . . 3 . . 2 3 3 1 2 2 . . . . Melee 1 | . . . . . . . 1 . . . . . . . . Uniques/NPCs Destroyed . | . . . . . . . . . . . . . . . . Combat | -11 -10 -10 -9 -9 -9 -8 -8 -8 -7 -7 -7 -7 -6 -6 -6 -------- Run | Scr Mat Min Mat Min Exi Min Mat Sto Fac Low Low Dat Pro Fac Was Damage Taken 6368 | . 639 . 666 325 . 342 2057 388 511 81 246 . 137 976 . Core 846 | . 114 . 83 42 . 64 317 46 47 20 16 . 16 81 . Absorbed by Shields . | . . . . . . . . . . . . . . . . Core Remaining (%) 65 | 100 . 54 . . . 52 . 34 . . . . 85 . . Volleys Fired 492 | . 62 . 76 31 . 21 112 45 44 9 17 . 9 66 . Largest 3 | . 2 . 3 3 . 3 3 3 3 3 3 . 3 3 . Hottest 204 | . 130 . 106 121 . 121 204 204 75 75 75 . 75 130 . Shots Fired 1336 | . 124 . 219 92 . 54 321 130 132 23 29 . 27 185 . Gun 931 | . 124 . 159 92 . 50 63 63 132 21 18 . 27 182 . Cannon 375 | . . . 56 . . . 252 65 . . . . . 2 . Launcher 29 | . . . 4 . . 4 6 2 . 2 11 . . . . Special 1 | . . . . . . . . . . . . . . 1 . Kinetic 744 | . 36 . 144 61 . 33 28 63 132 21 18 . 27 181 . Thermal 562 | . 88 . 71 31 . 17 287 65 . . . . . 3 . Explosive 29 | . . . 4 . . 4 6 2 . 2 11 . . . . Electromagnetic . | . . . . . . . . . . . . . . . . Robot Hit Streak 15 | . 12 . 13 7 . 4 13 15 12 9 7 . 4 15 . Robot Miss Streak 7 | . 6 . 4 4 . 7 4 3 5 3 2 . 3 4 . Penetration Max . | . . . . . . . . . . . . . . . . Secondary Targets 7 | . 1 . . . . 1 1 . . . . . 1 3 . Max Gunslinging Chain 1 | . 1 . . . . 1 1 . . . . . 1 1 . Shots Hit Robots 760 | . 83 . 130 45 . 22 183 64 77 10 13 . 15 118 . Core Hits 390 | . 43 . 62 21 . 19 104 38 26 11 19 . 6 41 . Critical Kills 5 | . . . . . . 1 1 . 1 . . . . 2 . Critical Parts Destroyed 3 | . . . 2 . . . . . . . . . . 1 . Critical Strikes 11 | . . . 2 3 . 1 1 . 1 . . . . 3 . Burn 3 | . . . . 3 . . . . . . . . . . . Meltdown 1 | . . . . . . . 1 . . . . . . . . Destroy 7 | . . . 2 . . 1 . . 1 . . . . 3 . Melee Attacks 22 | . . . . . . . 1 . 8 . . . . 13 . Impact . | . . . . . . . . . . . . . . . . Slashing 22 | . . . . . . . 1 . 8 . . . . 13 . Piercing . | . . . . . . . . . . . . . . . . Sneak Attacks 2 | . . . . . . . . . . . . . . 2 . Combat Hostiles . | . . . . . . . . . . . . . . . . Follow-up Attacks . | . . . . . . . . . . . . . . . . Damage Inflicted 17170 | . 942 16 2441 721 . 951 4687 1506 1429 488 1271 . 247 2471 . Guns 8874 | . 931 . 1630 721 . 419 666 399 1342 214 112 . 247 2193 . Cannons 4412 | . . . 521 . . . 3058 833 . . . . . . . Explosions 3427 | . . . 279 . . 488 794 268 85 274 1159 . . 80 . Melee 189 | . . . . . . . . . . . . . . 189 . Ramming 268 | . 11 16 11 . . 44 169 6 2 . . . . 9 . Kinetic 7215 | . 288 . 1513 465 . 207 255 399 1342 214 112 . 247 2173 . Thermal 6156 | . 643 . 638 256 . 212 3469 833 85 . . . . 20 . Explosive 3342 | . . . 279 . . 488 794 268 . 274 1159 . . 80 . Electromagnetic . | . . . . . . . . . . . . . . . . Impact . | . . . . . . . . . . . . . . . . Slashing 189 | . . . . . . . . . . . . . . 189 . Piercing . | . . . . . . . . . . . . . . . . Highest Corruption 6 | . . . 2 2 2 2 2 6 3 3 3 3 3 1 . Average Corruption 2 | . . . 2 2 2 2 2 4 2 3 3 3 3 1 . Corruption Purged . | . . . . . . . . . . . . . . . . Effects 202 | . . . 10 12 5 10 22 52 13 15 32 5 23 3 . Message Errors 59 | . . . 5 3 . 5 7 17 3 5 7 . 4 3 . Matter Fused 47 | . . . . . . . . 13 5 4 12 4 9 . . Heat Flow Errors 30 | . . . 1 2 3 1 6 7 2 1 6 . 1 . . Energy Discharges 26 | . . . 3 2 1 . 3 6 . 2 5 . 4 . . Data Loss (minor) 35 | . . . 1 4 1 4 5 6 3 3 2 1 5 . . Data Loss (major) 2 | . . . . . . . . 2 . . . . . . . Weapon Failures 3 | . . . . 1 . . 1 1 . . . . . . . Overload Shots 2 | . . . . . . . . . . . . . . 2 . Effects 1 | . . . . . . . . . . . . . . 1 . Energy Bleed 1 | . . . . . . . . . . . . . . 1 . Overflow Damage 239 | . . . . . . 47 32 61 . . 55 . . 44 . Projectiles 30 | . . . . . . . 30 . . . . . . . . Explosions 163 | . . . . . . 47 . 61 . . 55 . . . . Melee 46 | . . . . . . . 2 . . . . . . 44 . Knockbacks 2 | . . . . . . . 2 . . . . . . . . Impact 2 | . . . . . . . 2 . . . . . . . . Kinetic . | . . . . . . . . . . . . . . . . Secondary . | . . . . . . . . . . . . . . . . Self-Inflicted Damage 175 | . . . . . . 40 . . 68 27 40 . . . . Shots 5 | . . . . . . 1 . . 1 2 1 . . . . Rammed 31 | . . . 2 . . 7 19 2 1 . . . . . . Targets Rammed 42 | . 4 3 3 . . 7 21 2 1 . . . . 1 . Kicked 8 | . 4 3 1 . . . . . . . . . . . . Crushed 3 | . . . . . . . 2 . . . . . . 1 . Highest Temperature 550 | . 135 . 187 137 198 167 550 243 88 95 250 . 237 28 . Average Temperature 70 | . 54 . 23 25 99 37 102 62 33 48 97 . 142 9 . Received Heat Transfer 2163 | . 279 . 255 36 . . 1107 126 63 27 36 . . 234 . Effects 9 | . . . . . . . 9 . . . . . . . . Shutdowns 2 | . . . . . . . 2 . . . . . . . . Energy Bleed 2 | . . . . . . . 2 . . . . . . . . Interference 3 | . . . . . . . 3 . . . . . . . . Matter Decay 1 | . . . . . . . 1 . . . . . . . . Damage (core) 1 | . . . . . . . 1 . . . . . . . . Siege Activations . | . . . . . . . . . . . . . . . . Robots Corrupted . | . . . . . . . . . . . . . . . . Combat Hostiles . | . . . . . . . . . . . . . . . . Parts Fried . | . . . . . . . . . . . . . . . . Impact Corruptions 1 | . . . . . . . 1 . . . . . . . . Robots Melted 1 | . . . . . . . 1 . . . . . . . . Combat Hostiles 1 | . . . . . . . 1 . . . . . . . . Parts Melted 21 | . 4 . 2 1 . . 10 3 1 . . . . . . Heat Transferred 11761 | . 1375 . 1369 740 . 370 6290 1517 50 . . . . 50 . Parts Sabotaged . | . . . . . . . . . . . . . . . . Parts Stolen . | . . . . . . . . . . . . . . . . Parts Stripped . | . . . . . . . . . . . . . . . . Power Chain Reactions . | . . . . . . . . . . . . . . . . Missiles Intercepted . | . . . . . . . . . . . . . . . . Alert | -11 -10 -10 -9 -9 -9 -8 -8 -8 -7 -7 -7 -7 -6 -6 -6 ------- Run | Scr Mat Min Mat Min Exi Min Mat Sto Fac Low Low Dat Pro Fac Was Peak Influence 649 | . 367 75 649 407 . 149 593 460 339 . . . . 622 . Initial 252 | . . 75 . 252 . . 19 250 164 . . . . . 153 Average 223 | . 207 31 365 155 . 54 276 251 92 . . . . 369 . Maximum Alert Level 2 | . 1 . 2 2 . . 2 2 1 . . . . 2 . Low Security (%) 48 | 100 50 100 11 54 . 100 36 26 94 . . . . 27 . Level 1 31 | . 49 . 48 42 . . 33 60 5 . . . . 8 . Level 2 19 | . . . 40 2 . . 29 12 . . . . . 64 . Level 3 . | . . . . . . . . . . . . . . . . Level 4 . | . . . . . . . . . . . . . . . . Level 5 . | . . . . . . . . . . . . . . . . High Security . | . . . . . . . . . . . . . . . . Max Security . | . . . . . . . . . . . . . . . . Squads Dispatched 39 | . 4 . 8 . . . 6 6 5 . . . . 10 . Investigation 9 | . 2 . 3 . . . 1 1 2 . . . . . . Extermination 5 | . . . . . . . . . 3 . . . . 2 . Reinforcement 18 | . 2 . 5 . . . 4 2 . . . . . 5 . Assault 4 | . . . . . . . 1 . . . . . . 3 . Garrison 3 | . . . . . . . . 3 . . . . . . . Intercept . | . . . . . . . . . . . . . . . . Construction Impeded 4 | . . . . . . . 2 1 . . . . . 1 . Haulers Reinforced 1 | . . . . . . . . . . . . . . 1 . Cargo Convoy Interrupts 1 | . . . . . . . . . . . . . . 1 . Stealth | -11 -10 -10 -9 -9 -9 -8 -8 -8 -7 -7 -7 -7 -6 -6 -6 --------- Run | Scr Mat Min Mat Min Exi Min Mat Sto Fac Low Low Dat Pro Fac Was Distress Signals 17 | . 2 . 6 2 . 1 4 2 . . . . . . . Communications Jammed . | . . . . . . . . . . . . . . . . Distress Signals . | . . . . . . . . . . . . . . . . Times Spotted 250 | . 28 2 52 11 . 14 62 28 14 3 9 . 8 19 . Peak Tracking Total 9 | . 5 2 6 4 . 4 9 7 4 1 3 . 4 3 . Tactical Retreats 14 | . 1 . 4 . . 1 4 2 1 . . . 1 . . Traps | -11 -10 -10 -9 -9 -9 -8 -8 -8 -7 -7 -7 -7 -6 -6 -6 ------- Run | Scr Mat Min Mat Min Exi Min Mat Sto Fac Low Low Dat Pro Fac Was Traps Triggered 9 | . 1 . 3 . . . 2 2 . . . . . 1 . Indirectly . | . . . . . . . . . . . . . . . . Trap Hack Attempts . | . . . . . . . . . . . . . . . . Triggered . | . . . . . . . . . . . . . . . . Disarmed . | . . . . . . . . . . . . . . . . Reprogrammed . | . . . . . . . . . . . . . . . . Reused . | . . . . . . . . . . . . . . . . Traps Extracted . | . . . . . . . . . . . . . . . . Installed . | . . . . . . . . . . . . . . . . Triggered 1 | . . . . . . . . . . . . . . 1 . Machines | -11 -10 -10 -9 -9 -9 -8 -8 -8 -7 -7 -7 -7 -6 -6 -6 ---------- Run | Scr Mat Min Mat Min Exi Min Mat Sto Fac Low Low Dat Pro Fac Was Machines Disabled 20 | . . . 5 . . . 2 3 4 . . . . 6 . Max in Single Turn 4 | . . . 1 . . . 1 1 4 . . . . 3 . Garrison Access 1 | . . . . . . . 1 . . . . . . . . Machines Sabotaged . | . . . . . . . . . . . . . . . . Garrisons Compromised 1 | . . . . . . . . . . . . . . 1 . Overloaded Fab Kills . | . . . . . . . . . . . . . . . . Fab Network Shutdowns . | . . . . . . . . . . . . . . . . Hacking | -11 -10 -10 -9 -9 -9 -8 -8 -8 -7 -7 -7 -7 -6 -6 -6 --------- Run | Scr Mat Min Mat Min Exi Min Mat Sto Fac Low Low Dat Pro Fac Was Machines Accessed 55 | . 5 . 7 . 1 . 11 15 6 . . 4 . 6 . Terminals 37 | . 4 . 4 . . . 8 12 4 . . . . 5 . Fabricators 3 | . . . . . . . . . 2 . . . . 1 . Repair Stations 5 | . . . 1 . . . 2 2 . . . . . . . Recycling Units 2 | . 1 . 1 . . . . . . . . . . . . Scanalyzers 1 | . . . 1 . . . . . . . . . . . . Garrison Access 2 | . . . . . . . 1 1 . . . . . . . Total Hacks 190 | . 14 . 30 . 4 . 37 46 17 . . 28 . 14 . Successful 133 | . 6 . 20 . 4 . 28 31 8 . . 28 . 8 . Failed 57 | . 8 . 10 . . . 9 15 9 . . . . 6 . Catastrophic 9 | . . . 2 . . . . 3 1 . . . . 3 . Database Lockouts . | . . . . . . . . . . . . . . . . Manual 78 | . 12 . 10 . . . 20 17 9 . . . . 10 . Terminals 108 | . 13 . 15 . . . 25 33 11 . . . . 11 . Fabricators 9 | . . . . . . . . . 6 . . . . 3 . Repair Stations 29 | . . . 12 . . . 8 9 . . . . . . . Recycling Units 2 | . 1 . 1 . . . . . . . . . . . . Scanalyzers 2 | . . . 2 . . . . . . . . . . . . Garrison Access 8 | . . . . . . . 4 4 . . . . . . . Terminal Hacks 73 | . 1 . 5 . 4 . 13 16 4 . . 28 . 2 . Record 15 | . . . . . 4 . . . . . . 11 . . . Part Schematic 10 | . . . . . . . . 2 1 . . 7 . . . Robot Schematic 7 | . . . . . . . . . . . . 7 . . . Prototype ID Bank 3 | . . . . . . . . . . . . 3 . . . Open Door 3 | . . . . . . . . 3 . . . . . . . Branch Access Points 3 | . . . 1 . . . 1 . 1 . . . . . . Machine Index 1 | . . . . . . . 1 . . . . . . . . Terminal Index 3 | . . . . . . . 1 1 1 . . . . . . Fabricator Index 2 | . . . . . . . . . 1 . . . . 1 . Alert Level 6 | . . . . . . . 4 2 . . . . . . . Unreport Threat 6 | . . . . . . . 2 3 . . . . . 1 . Locate Traps 2 | . 1 . . . . . . 1 . . . . . . . Recall Reinforcements 1 | . . . 1 . . . . . . . . . . . . Hauler Manifests 4 | . . . 1 . . . 2 1 . . . . . . . Zone Layout 7 | . . . 2 . . . 2 3 . . . . . . . Fabricator Hacks 3 | . . . . . . . . . 2 . . . . 1 . Load Schematic 3 | . . . . . . . . . 2 . . . . 1 . Repair Station Hacks 26 | . . . 10 . . . 8 8 . . . . . . . Scan Component 13 | . . . 5 . . . 4 4 . . . . . . . Repair 13 | . . . 5 . . . 4 4 . . . . . . . Recycling Unit Hacks . | . . . . . . . . . . . . . . . . Scanalyzer 2 | . . . 2 . . . . . . . . . . . . Insert Component 1 | . . . 1 . . . . . . . . . . . . Analyze 1 | . . . 1 . . . . . . . . . . . . Garrison Access Hacks 1 | . . . . . . . 1 . . . . . . . . Seal Access 1 | . . . . . . . 1 . . . . . . . . Unauthorized Hacks 28 | . 5 . 3 . . . 6 7 2 . . . . 5 . Terminals 25 | . 4 . 2 . . . 6 7 2 . . . . 4 . Assimilate 3 | . . . . . . . 1 . 1 . . . . 1 . Botnet 22 | . 4 . 2 . . . 5 7 1 . . . . 3 . Fabricators 1 | . . . . . . . . . . . . . . 1 . Haulers 1 | . . . . . . . . . . . . . . 1 . Repair Stations . | . . . . . . . . . . . . . . . . Recycling Units 2 | . 1 . 1 . . . . . . . . . . . . Tunnel 2 | . 1 . 1 . . . . . . . . . . . . Scanalyzers . | . . . . . . . . . . . . . . . . Garrison Access . | . . . . . . . . . . . . . . . . Data Cores Recovered 1 | . . . . . . . . . . . . . . 1 . Used . | . . . . . . . . . . . . . . . . Hacking Detections 41 | . 4 . 5 . . . 9 11 6 . . . . 6 . Full Trace Events 3 | . . . . . . . . 1 2 . . . . . . Feedback Events 1 | . . . . . . . . . 1 . . . . . . Corruption 1 | . . . . . . . . . 1 . . . . . . Feedback Blocked . | . . . . . . . . . . . . . . . . Robot Schematics Acquired 7 | . . . . . . . . . . . . 7 . . . Robots Built . | . . . . . . . . . . . . . . . . Matter . | . . . . . . . . . . . . . . . . Time . | . . . . . . . . . . . . . . . . Total Robot Build Rating . | . . . . . . . . . . . . . . . . Part Schematics Acquired 11 | . . . 1 . . . . 2 1 . . 7 . . . Parts Built . | . . . . . . . . . . . . . . . . Matter . | . . . . . . . . . . . . . . . . Time . | . . . . . . . . . . . . . . . . Total Part Build Rating . | . . . . . . . . . . . . . . . . Parts Repaired 13 | . . . 5 . . . 4 4 . . . . . . . Time 441 | . . . 142 . . . 147 152 . . . . . . . Parts Recycled . | . . . . . . . . . . . . . . . . Recycled Matter . | . . . . . . . . . . . . . . . . Retrieved Matter . | . . . . . . . . . . . . . . . . Retrieved Components . | . . . . . . . . . . . . . . . . Parts Scanalyzed 1 | . . . 1 . . . . . . . . . . . . Part Schematics Acquired 1 | . . . 1 . . . . . . . . . . . . Parts Damaged . | . . . . . . . . . . . . . . . . Bothacking | -11 -10 -10 -9 -9 -9 -8 -8 -8 -7 -7 -7 -7 -6 -6 -6 ------------ Run | Scr Mat Min Mat Min Exi Min Mat Sto Fac Low Low Dat Pro Fac Was Used RIF Installer . | . . . . . . . . . . . . . . . . Robots Hacked 1 | . . . . . . . . . . . . . . 1 . Non-combat 1 | . . . . . . . . . . . . . . 1 . Combat . | . . . . . . . . . . . . . . . . Robot Hacks Applied 1 | . . . . . . . . . . . . . . 1 . find_chute 1 | . . . . . . . . . . . . . . 1 . Relay Couplers Released . | . . . . . . . . . . . . . . . . Robots Rewired . | . . . . . . . . . . . . . . . . Allies Hacked 2 | . . . . . . . . . 1 . . . . 1 . Hacks Repelled . | . . . . . . . . . . . . . . . . Allies | -11 -10 -10 -9 -9 -9 -8 -8 -8 -7 -7 -7 -7 -6 -6 -6 -------- Run | Scr Mat Min Mat Min Exi Min Mat Sto Fac Low Low Dat Pro Fac Was Total Allies 34 | . . 2 . 1 . . . 10 1 . . . 1 19 . Largest Group 19 | . . 2 2 1 . . . 10 6 . . . 1 19 . Highest-Rated Group 769 | . . 48 48 31 . . . 173 109 . . . 95 769 . Highest-Rated Ally 95 | . . 31 31 31 . . . 29 29 . . . 95 95 . Total Orders . | . . . . . . . . . . . . . . . . Ally Attacks 197 | . . 6 24 . . . . 63 30 . . . 21 53 . Total Damage 3887 | . . 83 300 . . . . 887 337 . . . 727 1553 . Kills 45 | . . 2 7 . . . . 13 4 . . . 6 13 . Allies Corrupted . | . . . . . . . . . . . . . . . . Allies Melted . | . . . . . . . . . . . . . . . . Intel | -11 -10 -10 -9 -9 -9 -8 -8 -8 -7 -7 -7 -7 -6 -6 -6 ------- Run | Scr Mat Min Mat Min Exi Min Mat Sto Fac Low Low Dat Pro Fac Was Robot Analysis Total . | . . . . . . . . . . . . . . . . Derelict Logs Recovered 7 | . . 1 . 1 . . . . . 1 2 . 2 . . Drone Launches . | . . . . . . . . . . . . . . . . Drone Recoveries . | . . . . . . . . . . . . . . . . Exploration | -11 -10 -10 -9 -9 -9 -8 -8 -8 -7 -7 -7 -7 -6 -6 -6 ------------- Run | Scr Mat Min Mat Min Exi Min Mat Sto Fac Low Low Dat Pro Fac Was Turns Passed 21607 | 60 1088 1003 2614 1767 401 1618 2674 2507 1628 877 2161 204 1295 1710 . Spaces Moved 7249 | 52 455 492 795 593 155 592 733 787 531 325 704 79 424 532 . Core 17 | 17 . . . . . . . . . . . . . . . Treads 5916 | . . . 461 593 155 592 733 787 531 325 704 79 424 532 . Legs 1316 | 35 455 492 334 . . . . . . . . . . . . Wheels . | . . . . . . . . . . . . . . . . Hover . | . . . . . . . . . . . . . . . . Flight . | . . . . . . . . . . . . . . . . Fastest Speed 50 | 50 120 200 200 260 260 260 255 261 261 261 261 261 261 263 . Average Speed 249 | 97 177 200 253 260 260 260 259 261 261 261 261 261 261 263 . Slowest Speed 360 | 120 200 200 360 260 260 260 261 261 261 261 261 261 261 267 . Overloaded Moves . | . . . . . . . . . . . . . . . . Propulsion Burnouts . | . . . . . . . . . . . . . . . . Robots Hopped . | . . . . . . . . . . . . . . . . Cave-ins Triggered . | . . . . . . . . . . . . . . . . Exploration Rate (%) 60 | 3 71 99 82 98 55 98 71 93 14 57 70 69 57 14 10 Regions Visited 15 Branch Regions 9 Pre-discovered Areas 6 | . 1 . 1 1 1 . . . . 1 . 1 . . . Known Exits Taken 7 | . . . 1 . . . 1 . 1 1 1 1 1 . . Unknown Exits Taken 7 | 1 1 1 . 1 1 1 . 1 . . . . . . . Scrap Searched 8 | . . 1 . 2 . 1 . . . 3 1 . . . . Spaces Dug 136 | . . . . . . 37 1 . 8 12 68 . . 10 . Terrain Destroyed 369 | . . . 31 . . 46 56 12 34 24 140 . . 26 . Melee 19 | . . . . . . . 1 . 8 . . . . 10 . Projectile 4 | . . . . . . . 3 . . . . . . 1 . AOE 346 | . . . 31 . . 46 52 12 26 24 140 . . 15 . Terrain Rammed . | . . . . . . . . . . . . . . . . Walls Destroyed . | . . . . . . . . . . . . . . . . Machines Disabled . | . . . . . . . . . . . . . . . . Actions | -11 -10 -10 -9 -9 -9 -8 -8 -8 -7 -7 -7 -7 -6 -6 -6 --------- Run | Scr Mat Min Mat Min Exi Min Mat Sto Fac Low Low Dat Pro Fac Was Total 9878 | 58 621 509 1261 764 154 624 1228 1173 711 343 1005 78 602 747 . Wait 1682 | . 39 13 305 133 . 3 302 288 69 4 266 . 166 94 . Move 7235 | 51 454 491 794 592 154 591 732 786 530 324 703 78 423 532 . Hop . | . . . . . . . . . . . . . . . . Pick Up 105 | 1 25 . 26 1 . . 16 13 11 . 3 . . 9 . Fast Attach 46 | 6 1 . 12 . . . 7 9 9 1 . . . 1 . Attach 20 | . 1 . 3 . . . 9 . 2 . . . . 5 . Detach 1 | . . . . . . . . 1 . . . . . . . Swap 111 | . 13 1 12 3 . 2 15 8 18 4 13 . 4 18 . Drop 120 | . 22 1 30 4 . . 13 20 18 1 3 . . 8 . Fire 492 | . 62 . 76 31 . 21 112 45 44 9 17 . 9 66 . Melee 22 | . . . . . . . 1 . 8 . . . . 13 . Ram . | . . . . . . . . . . . . . . . . Kick 8 | . 4 3 1 . . . . . . . . . . . . Crush 34 | . . . 2 . . 7 21 2 1 . . . . 1 . Escape Stasis . | . . . . . . . . . . . . . . . . Rewire 2 | . . . . . . . . 1 1 . . . . . . Trap . | . . . . . . . . . . . . . . . . Miscellaneous . | . . . . . . . . . . . . . . . . Route ------- -11/Scrapyard -10/Materials (discovered 3 exits: *Mat x2 / [*Min]) -10/Mines (discovered 2 exits: *Mat x2) -9/Materials (discovered 4 exits: *Mat x2 / *Min x2) -9/Mines (discovered 3 exits: *Mat x2 / *Exi) -9/Exiles (discovered 2 exits: [*Min x2]) -8/Mines (discovered 2 exits: *Mat x2) -8/Materials -8/Storage -7/Factory (discovered 2 exits: *Low x2) -7/Lower Caves -7/Lower Caves -7/Data Miner -6/Proximity Caves -6/Factory (discovered 2 exits: Fac x2) -6/Waste History --------- Turn | Location | Event 5 | -11/Scrapyard | Discovered new exit (range 15) 61 | -11/Scrapyard | Entered Materials 363 | -10/Materials | Discovered new exit (range 9) 451 | -10/Materials | Build established: Scavenger-Mutant 671 | -10/Materials | Discovered new exit (range 16) 898 | -10/Materials | Discovered new exit (range 16) 1149 | -10/Materials | Entered Mines 1196 | -10/Mines | Met a Derelict bent on vengeance 1216 | -10/Mines | Build established: Mutant 1403 | -10/Mines | Found a hidden stash of uninstalled traps 1525 | -10/Mines | Learned Materials non-interactive machine intel 1649 | -10/Mines | Discovered new exit (range 6) 1743 | -10/Mines | A weapon hastily lodged in a ceiling crevice suddenly fell to the ground 1899 | -10/Mines | Discovered new exit (range 15) 2152 | -10/Mines | Entered Materials 2152 | -9/Materials | Accompanied by 2 allies 2152 | -9/Materials | Evolved 2 slots: Utility x1, Weapon x1 2153 | -9/Materials | Loaded intel: 49 non-interactive machine locations 2157 | -9/Materials | Led the pair of lost Derelicts to an unsafe place 2482 | -9/Materials | Discovered new exit (range 15) 2776 | -9/Materials | Build established: Tank 3290 | -9/Materials | Discovered new exit (range 10) 3566 | -9/Materials | Repaired Med. Armor Plating 3599 | -9/Materials | Repaired Autogun 3627 | -9/Materials | Repaired Lgt. Treads 3654 | -9/Materials | Repaired Lgt. Treads 3682 | -9/Materials | Repaired Beam Cannon 4117 | -9/Materials | Discovered new exit (range 16) 4457 | -9/Materials | Discovered new exit (range 10) 4708 | -9/Materials | Identified exit to Mines 4766 | -9/Materials | Entered Mines 4774 | -9/Mines | Assembled infested the area 4779 | -9/Mines | Assisted by a Guerilla fighting off Assembled 5294 | -9/Mines | Discovered new exit (range 7) 5811 | -9/Mines | Discovered new exit (range 7) 5944 | -9/Mines | Received a Mining Laser from a helpful Derelict 6219 | -9/Mines | Joined a pair of Derelicts in attacking an 0b10 outpost 6523 | -9/Mines | Deemed a non-threat by the Exiles lab entrance 6523 | -9/Mines | Discovered new exit (range 5) 6533 | -9/Mines | Entered Exiles 6567 | -9/Exiles | Discovered new exit (range 15) 6604 | -9/Exiles | Met 8R-AWN 6643 | -9/Exiles | Met EX-HEX 6767 | -9/Exiles | Met EX-DEC 6812 | -9/Exiles | Learned location of Zion (-6) 6903 | -9/Exiles | Discovered new exit (range 14) 6934 | -9/Exiles | Entered Mines 7039 | -8/Mines | Discovered new exit (range 9) 7849 | -8/Mines | Discovered new exit (range 5) 8345 | -8/Mines | Build established: Mutant 8552 | -8/Mines | Entered Materials 8552 | -8/Materials | Evolved 2 slots: Propulsion x1, Utility x1 8769 | -8/Materials | Repaired Med. Armor Plating 8796 | -8/Materials | Repaired Lgt. Treads 9056 | -8/Materials | Build established: Scavenger-Tank 9104 | -8/Materials | Destroyed 8 combat bots 9113 | -8/Materials | Lost 3 parts (1n1u1w) 9370 | -8/Materials | Identified exit to Storage 9891 | -8/Materials | Build established: Tank 10509 | -8/Materials | Core integrity fell below 50% 10561 | -8/Materials | Destroyed 9 combat bots 10861 | -8/Materials | Repaired Adv. Beam Cannon 10900 | -8/Materials | Repaired Adv. Treads 10952 | -8/Materials | First assault squad dispatched 11226 | -8/Materials | Entered Storage 11676 | -8/Storage | Repaired Arm. Treads 11715 | -8/Storage | Repaired Hrd. Medium Armor Plating 11831 | -8/Storage | Garrison activated, responded to threat 12545 | -8/Storage | Assisted by bots powering up and referring to "LRC-V3" 12845 | -8/Storage | Build established: Commander-Tank 13533 | -8/Storage | Repaired Arm. Treads 13572 | -8/Storage | Repaired Adv. Treads 13631 | -8/Storage | Discovered new exit (range 15) 13733 | -8/Storage | Entered Factory 13733 | -7/Factory | Accompanied by 6 allies 13733 | -7/Factory | Evolved 2 slots: Utility x2 14137 | -7/Factory | Build established: Hacker-Skirmisher 14671 | -7/Factory | Identified exit to Lower Caves 15361 | -7/Factory | Entered Lower Caves 15755 | -7/Lower Caves | Learned location of Extension (-6) 16102 | -7/Lower Caves | Discovered new exit (range 13) 16204 | -7/Lower Caves | Identified exit to Lower Caves 16238 | -7/Lower Caves | Entered another Lower Caves area 17134 | -7/Lower Caves | Learned location of 1 exit from Factory 17175 | -7/Lower Caves | Learned location of 1 exit from Factory 18217 | -7/Lower Caves | Discovered new exit (range 15) 18321 | -7/Lower Caves | Identified exit to Data Miner 18399 | -7/Lower Caves | Entered Data Miner 18399 | -7/Data Miner | Discovered new exit (range 6) 18449 | -7/Data Miner | Met Data Miner 18504 | -7/Data Miner | Learned location of Section 7 (-2) 18504 | -7/Data Miner | Acquired the access code to Warlord's prototype stash 18540 | -7/Data Miner | Received God Mode back door access code from Data Miner 18600 | -7/Data Miner | Identified exit to Proximity Caves 18603 | -7/Data Miner | Entered Proximity Caves 18659 | -6/Proximity Caves | Learned Factory terminal intel 18889 | -6/Proximity Caves | Escorted by Enhanced Grunt 19214 | -6/Proximity Caves | Received a Behemoth hack from an annoying Tinkerer 19341 | -6/Proximity Caves | Learned Factory stockpile data 19637 | -6/Proximity Caves | Discovered new exit (range 8) 19773 | -6/Proximity Caves | Identified exit to Factory 19898 | -6/Proximity Caves | Entered Factory 19898 | -6/Factory | Accompanied by 1 ally 19898 | -6/Factory | Evolved 2 slots: Propulsion x1, Utility x1 19899 | -6/Factory | Identified exit to Factory 19901 | -6/Factory | Loaded intel: 22 terminal locations 20133 | -6/Factory | Spotted B-75 Beast 20180 | -6/Factory | Destroyed B-75 Beast 20513 | -6/Factory | Cargo convoy interrupted 20764 | -6/Factory | Build established: Hacker-Mutant 20948 | -6/Factory | First assault squad dispatched 20973 | -6/Factory | Incoming assault squad redirected 21322 | -6/Factory | Incoming assault squad redirected 21326 | -6/Factory | Incoming assault squad redirected 21608 | -6/Factory | Sucked down chute 21608 | -6/Factory | Entered Waste 21608 | -6/Waste | Self-destructed Last Messages --------------- 21407_ K-01 Serf collects debris. 21409_ Y-54 Guardian destroyed. 21412_ K-01 Serf collects debris. 21416_ U-05 Engineer builds a Door. 21416_ K-01 Serf collects debris. 21426_ Dropped Adv. Treads. 21427_ K-01 Serf collects debris. 21438_ Dropped Arm. Treads. 21438_ Acquired Imp. Deuterium Engine. 21442_ R-10 Processor collects Adv. Treads. 21442_ Acquired 66 matter. 21450_ Dropped Enh. Autogun. 21450_ Acquired Gatling Laser. 21451_ R-10 Processor collects Imp. Hover Unit. 21477_ R-10 Processor collects Lgt. Treads. 21518_ RC%P>YU>MI4XTWLIO:E|G# 21608_ Triggered Chute Trap. 21608_ A hatch slides open and sucks a vortex of air into the floor. LOCATION=UNKNOWN GOAL=ESCAPE Map ----- +----------------------------------------------------+ | ??????????????????????????????????????????? | | ??????????????????????????????????????????? | | ??????????????????????????????????????????? | | ??????????????????????????????????????????? | | ??????????????????????????????????????????? | | ??????????????????????????????????????????? | | ??????????????????????????????????????????? | | ??????????????????????????????????????????? | | ??????????????????????????????????????????? | | ??????????????????????????????????????????? | | ??????????????????????????????????????????? | | ??????????????????????????????????????????? | | ??????????????????????????????????????????? | | ??????????????????????????????????????????? | | ??????????????????????????????????????????? | | ??????????????????????????????????????????? | | ??????????????????????????????????????????? | | ??????????????????????????????????????????? | | ??????????????????????????????????????????? | | ??????????????????????????????????????????? | | ?????????????############?????????????????? | | ?????????????# #?????????????????? | | ?????????????# #?????????????????? | | ?????????????# #### #?????????? | | ?????????????# #?????????? | | ?????????????# @ #?????????? | | ?????????????# #?????????? | | ?????????????# #?????????? | | ?????????????# #### #?????????? | | ?????????????# #???????#?????????? | | ?????????????# g #?????????????????? | | ?????????????############?????????????????? | | ??????????????????????????????????????????? | | ??????????????????????????????????????????? | | ??????????????????????????????????????????? | | ??????????????????????????????????????????? | | ??????????????????????????????????????????? | | ??????????????????????????????????????????? | | ??????????????????????????????????????????? | | ??????????????????????????????????????????? | | ??????????????????????????????????????????? | | ??????????????????????????????????????????? | | ??????????????????????????????????????????? | | ??????????????????????????????????????????? | | ??????????????????????????????????????????? | | ??????????????????????????????????????????? | | ??????????????????????????????????????????? | | ??????????????????????????????????????????? | | ??????????????????????????????????????????? | | ??????????????????????????????????????????? | +----------------------------------------------------+ Best States ------------- Heat Dissipation 75 Energy Generation 16 Energy Capacity 290 Matter Stores 300 Matter Capacity 300 Sight Range 16 Robot Scan Range 16 Terrain Scan Density 10 Armor Coverage 225 Evasion (%) 55 Recoil Reduction 4 Offensive Hacking 21 Item Schematics ----------------- Cooling System | -9/Materials | Scanalyzed Imp. Particle Charger | -8/Storage | Hacked Hrd. Medium Armor Plating | -8/Storage | Hacked Adv. Sensor Array | -7/Factory | Hacked Combat Drone Bay | -7/Data Miner | Free Lgt. Regenerative Plating | -7/Data Miner | Free Exp. Sensor Array | -7/Data Miner | Free Exp. Terrain Scanner | -7/Data Miner | Free Exp. Terrain Scan Processor | -7/Data Miner | Free Exp. ECM Suite | -7/Data Miner | Free Cloaking Device | -7/Data Miner | Free Robot Schematics ------------------ S-27 Virus | -7/Data Miner | Free G-50 Soldier | -7/Data Miner | Free G-67 Veteran | -7/Data Miner | Free X-72 Disruptor | -7/Data Miner | Free H-66 Slayer | -7/Data Miner | Free P-70 Sage | -7/Data Miner | Free I-36 Angel | -7/Data Miner | Free Fabricated ------------ Nothing Alien Tech Used ----------------- None Achievements -------------- None Challenges ------------ None Game ------ Seed CorruptionAluminumSegregator Manual? 0 Play Time 01:24:04 Cumulative 1258.3 hours Start 2021.06.10 @ 16:28:05 End 2021.06.10 @ 18:25:23 Sessions 1 Manual Loads 0 Difficulty Rogue Special Mode None Game No. 427 Rogue 427 Adventurer 0 Explorer 0 Win Type - Total 91 Types 20/12/37/5/1/2/12/1/1 Lore% 97 Gallery% 96 Achievement% 85 Wizard Run 0 Options --------- ASCII 0 Keyboard 0 Movement Numpad Keybinds 0 Fullscreen 1 Font 18/SmallcapsGlow Map View 76x50 Tactical HUD 1 Map Filters NONE Filters NONE Steam 1 RUN: 0cf1201c-336f-44df-9a3b-3f4342f04552